Cogmind - Beta 12 @@@ ROGUE MODE // 2023.04.13 @ 11:16:02 Player: Mr Goldstein Result: Destroyed by Y-54 Guardian with Flak Gun Performance ------------- Evolutions (4) 2000 Regions Visited (10) 2000 Robots Destroyed (0) 0 Value Destroyed (0) 0 Prototype IDs (10) 200 Alien Tech Used (0) 0 Bonus (14344) 14344 TOTAL SCORE: 18544 Bonus ------- Fragile Parts 1000 No Salvage 1000 Pure Core 2000 Scavenger 4000 Simple Hacker 1519 Trapped 1000 Unstable Evolution 2000 Pacifist 1325 Entered DSFs 500 Cogmind --------- Core Integrity 0/850 Matter 219/300 Energy 80/100 System Corruption 6% Temperature Cool (6) Movement Core (50) Location -6/Factory Parts ------- > --- POWER (1) -------- (None) > --- PROPULSION (3) --- (None) > --- UTILITY (5) ------ (None) > --- WEAPON (6) ------- (None) > --- INVENTORY (0) ---- (None) Peak State ------------ > --- POWER ------------ (None) > --- PROPULSION ------- Nuclear Pulse Thruster > --- UTILITY ---------- Advanced Visual Processing Unit Advanced Visual Processing Unit Advanced Visual Processing Unit > --- WEAPON ----------- (None) > --- INVENTORY -------- (None) [Rating: 14] Favorites ----------- Power None Propulsion VTOL Module Flight Unit VTOL Module Utility System Shield Processor Advanced Visual Processing Unit Hackware System Shield Weapon Remote Datajack Special Weapon Remote Datajack Special Melee Weapon Improved Datajack Build | -11 -10 -9 -8 -7 -7 -7 -7 -6 -6 -6 ------- Run | Jun Mat Mat Mat Fac Was Fac DSF Fac Was Fac Slots Evolved 8 | . . 2 2 2 . . . 2 . . Power . | . . . . . . . . . . . Propulsion 1 | . . . . 1 . . . . . . Utility 3 | . . 1 1 . . . . 1 . . Weapon 4 | . . 1 1 1 . . . 1 . . Parts Attached 11 | . 2 3 1 1 . . 3 1 . . Power . | . . . . . . . . . . . Engine . | . . . . . . . . . . . Core . | . . . . . . . . . . . Reactor . | . . . . . . . . . . . Propulsion 3 | . 2 . . . . . . 1 . . Treads . | . . . . . . . . . . . Leg . | . . . . . . . . . . . Wheel . | . . . . . . . . . . . Hover . | . . . . . . . . . . . Flight 3 | . 2 . . . . . . 1 . . Utility 6 | . . 3 . . . . 3 . . . Device . | . . . . . . . . . . . Storage . | . . . . . . . . . . . Processor 3 | . . . . . . . 3 . . . Hackware 3 | . . 3 . . . . . . . . Protection . | . . . . . . . . . . . Artifact . | . . . . . . . . . . . Weapon 2 | . . . 1 1 . . . . . . Energy Gun . | . . . . . . . . . . . Energy Cannon . | . . . . . . . . . . . Ballistic Gun . | . . . . . . . . . . . Ballistic Cannon . | . . . . . . . . . . . Launcher . | . . . . . . . . . . . Special Weapon 1 | . . . . 1 . . . . . . Impact Weapon . | . . . . . . . . . . . Slashing Weapon . | . . . . . . . . . . . Piercing Weapon . | . . . . . . . . . . . Special Melee Weapon 1 | . . . 1 . . . . . . . Unidentified Prototypes . | . . . . . . . . . . . Parts Lost 6 | . . 3 1 . 1 . . . 1 . Power . | . . . . . . . . . . . Propulsion 3 | . . 2 . . . . . . 1 . Utility 1 | . . 1 . . . . . . . . Weapon 2 | . . . 1 . 1 . . . . . Highest Loss Streak 3 | . . 3 1 . 1 . . . 1 . To Critical Strikes . | . . . . . . . . . . . Average Slot Usage (%) 9 | . 9 36 10 6 7 . 19 23 19 3 Flight 1 | . 9 14 . . . . . 3 4 . Processor 3 | . . . . . . . 19 20 15 3 Hackware 4 | . . 22 9 5 . . . . . . Naked Turns 198 | . 26 . . 36 9 39 4 . . 84 Heaviest Build 3 | . . . 1 3 3 . . . . . Greatest Support 8 | 3 8 8 3 3 3 3 3 6 6 3 Greatest Overweight (x) . | . . . . . . . . . . . Average Overweight (x) . | . . . . . . . . . . . Largest Inventory Capacity . | . . . . . . . . . . . Average Capacity . | . . . . . . . . . . . Most Carried . | . . . . . . . . . . . Average Carried . | . . . . . . . . . . . Final Capacity . | . . . . . . . . . . . Final Carried . | . . . . . . . . . . . Class Distribution -------------------- 91% | Mutant 8% | Hacker-Mutant Dominant Class ---------------- Mutant | -10/Materials Hacker-Mutant | -9/Materials Mutant | -8/Materials Mutant | -7/Factory Mutant | -7/Waste Mutant | -7/Factory Mutant | -7/DSF Mutant | -6/Factory Mutant | -6/Waste Mutant | -6/Factory Resources | -11 -10 -9 -8 -7 -7 -7 -7 -6 -6 -6 ----------- Run | Jun Mat Mat Mat Fac Was Fac DSF Fac Was Fac Matter Collected 177 | 169 . . . 8 . . . . . . Remotely . | . . . . . . . . . . . Salvage Created . | . . . . . . . . . . . Parts . | . . . . . . . . . . . Haulers Intercepted . | . . . . . . . . . . . Recyclers Shooed . | . . . . . . . . . . . Parts Field Recycled . | . . . . . . . . . . . Retrieved Matter . | . . . . . . . . . . . Parts Self-Destructed . | . . . . . . . . . . . Prevented . | . . . . . . . . . . . Kills | -11 -10 -9 -8 -7 -7 -7 -7 -6 -6 -6 ------- Run | Jun Mat Mat Mat Fac Was Fac DSF Fac Was Fac Combat Hostiles Destroyed . | . . . . . . . . . . . Classes Destroyed . | . . . . . . . . . . . Best Kill Streak . | . . . . . . . . . . . Combat Bots Only . | . . . . . . . . . . . Max Kills in Single Turn . | . . . . . . . . . . . Gunslinging . | . . . . . . . . . . . Exploded . | . . . . . . . . . . . Melee . | . . . . . . . . . . . Uniques/NPCs Destroyed . | . . . . . . . . . . . Combat | -11 -10 -9 -8 -7 -7 -7 -7 -6 -6 -6 -------- Run | Jun Mat Mat Mat Fac Was Fac DSF Fac Was Fac Damage Taken 1900 | . 66 259 239 328 53 . 104 . 30 821 Core 1809 | . 46 194 233 328 53 . 104 . 30 821 Absorbed by Shields . | . . . . . . . . . . . Core Remaining (%) 63 | 100 81 51 57 . . . 30 . . . Volleys Fired 1 | . . . . 1 . . . . . . Largest 1 | . . . . 1 . . . . . . Hottest 5 | . . . . 5 . . . . . . Shots Fired 1 | . . . . 1 . . . . . . Gun . | . . . . . . . . . . . Cannon . | . . . . . . . . . . . Launcher . | . . . . . . . . . . . Special 1 | . . . . 1 . . . . . . Kinetic . | . . . . . . . . . . . Thermal . | . . . . . . . . . . . Explosive . | . . . . . . . . . . . Electromagnetic . | . . . . . . . . . . . Robot Hit Streak 1 | . . . . 1 . . . . . . Robot Miss Streak . | . . . . . . . . . . . Penetration Max . | . . . . . . . . . . . Secondary Targets . | . . . . . . . . . . . Shots Hit Robots 2 | . . . 1 1 . . . . . . Core Hits 5 | . . . . 3 . . . . . 2 Critical Kills . | . . . . . . . . . . . Critical Parts Destroyed . | . . . . . . . . . . . Critical Strikes . | . . . . . . . . . . . Melee Attacks 1 | . . . 1 . . . . . . . Impact . | . . . . . . . . . . . Slashing . | . . . . . . . . . . . Piercing . | . . . . . . . . . . . Sneak Attacks 1 | . . . 1 . . . . . . . Combat Hostiles . | . . . . . . . . . . . Follow-up Attacks . | . . . . . . . . . . . Damage Inflicted 64 | . . . 2 20 . . . . . 42 Guns . | . . . . . . . . . . . Cannons . | . . . . . . . . . . . Explosions . | . . . . . . . . . . . Melee . | . . . . . . . . . . . Ramming 64 | . . . 2 20 . . . . . 42 Kinetic . | . . . . . . . . . . . Thermal . | . . . . . . . . . . . Explosive . | . . . . . . . . . . . Electromagnetic . | . . . . . . . . . . . Impact . | . . . . . . . . . . . Slashing . | . . . . . . . . . . . Piercing . | . . . . . . . . . . . Highest Corruption 13 | . . . 1 5 13 13 13 . . 6 Average Corruption 4 | . . . 1 2 9 13 13 . . 2 Corruption Purged . | . . . . . . . . . . . Corruption Blocked . | . . . . . . . . . . . Effects 16 | . . . . 8 2 1 3 . . 2 Message Errors 5 | . . . . 4 . . . . . 1 Matter Fused 3 | . . . . 2 . 1 . . . . Energy Discharges 2 | . . . . . . . 1 . . 1 Data Loss (minor) 5 | . . . . 2 1 . 2 . . . Misdirections 1 | . . . . . 1 . . . . . Overload Shots . | . . . . . . . . . . . Overflow Damage . | . . . . . . . . . . . Projectiles . | . . . . . . . . . . . Explosions . | . . . . . . . . . . . Melee . | . . . . . . . . . . . Knockbacks 1 | . . . . . . . . . . 1 Impact 1 | . . . . . . . . . . 1 Kinetic . | . . . . . . . . . . . Secondary . | . . . . . . . . . . . Self-Inflicted Damage 26 | . . . 1 7 . . . . . 18 Shots . | . . . . . . . . . . . Rammed 18 | . . . 1 6 . . . . . 11 Targets Rammed 18 | . . . 1 6 . . . . . 11 Kicked . | . . . . . . . . . . . Crushed . | . . . . . . . . . . . Highest Temperature 4 | . . 4 . . . . . . . . Average Temperature 4 | . . 4 . . . . . . . . Received Heat Transfer 129 | . 36 42 . . . . . . . 51 Siege Activations . | . . . . . . . . . . . Robots Corrupted . | . . . . . . . . . . . Combat Hostiles . | . . . . . . . . . . . Parts Fried . | . . . . . . . . . . . Impact Corruptions . | . . . . . . . . . . . Robots Melted . | . . . . . . . . . . . Combat Hostiles . | . . . . . . . . . . . Parts Melted . | . . . . . . . . . . . Heat Transferred . | . . . . . . . . . . . Parts Sabotaged . | . . . . . . . . . . . Parts Stolen . | . . . . . . . . . . . Parts Stripped . | . . . . . . . . . . . Power Chain Reactions . | . . . . . . . . . . . Missiles Intercepted . | . . . . . . . . . . . Alert | -11 -10 -9 -8 -7 -7 -7 -7 -6 -6 -6 ------- Run | Jun Mat Mat Mat Fac Was Fac DSF Fac Was Fac Peak Influence 251 | . 15 125 142 251 132 100 85 58 40 148 Initial 87 | . . 5 52 59 87 85 70 44 20 28 Average 100 | . 6 60 71 170 106 93 71 47 34 49 Maximum Alert Level 1 | . . . . 1 . . . . . . Low Security (%) 79 | 100 100 100 100 44 100 100 100 100 100 100 Level 1 20 | . . . . 55 . . . . . . Level 2 . | . . . . . . . . . . . Level 3 . | . . . . . . . . . . . Level 4 . | . . . . . . . . . . . Level 5 . | . . . . . . . . . . . High Security . | . . . . . . . . . . . Max Security . | . . . . . . . . . . . Squads Dispatched 7 | . 2 1 . 3 . . . . . 1 Investigation 3 | . 2 . . 1 . . . . . . Extermination . | . . . . . . . . . . . Reinforcement 4 | . . 1 . 2 . . . . . 1 Assault . | . . . . . . . . . . . Garrison . | . . . . . . . . . . . Intercept . | . . . . . . . . . . . Searches Triggered . | . . . . . . . . . . . Construction Impeded . | . . . . . . . . . . . Haulers Reinforced . | . . . . . . . . . . . Active Scanning Responses . | . . . . . . . . . . . Cargo Convoy Interrupts . | . . . . . . . . . . . Stealth | -11 -10 -9 -8 -7 -7 -7 -7 -6 -6 -6 --------- Run | Jun Mat Mat Mat Fac Was Fac DSF Fac Was Fac Distress Signals 6 | . . 3 . 2 . . . . . 1 Communications Jammed . | . . . . . . . . . . . Distress Signals . | . . . . . . . . . . . Times Spotted 83 | . 7 18 12 20 5 1 1 . 6 13 Peak Tracking Total 15 | . 8 15 8 5 5 1 1 . 6 9 Tactical Retreats 13 | . . 2 1 6 . . 1 . . 3 Traps | -11 -10 -9 -8 -7 -7 -7 -7 -6 -6 -6 ------- Run | Jun Mat Mat Mat Fac Was Fac DSF Fac Was Fac Traps Triggered 21 | . 2 1 . 14 . . 1 1 . 2 Indirectly . | . . . . . . . . . . . Trap Hack Attempts . | . . . . . . . . . . . Triggered . | . . . . . . . . . . . Disarmed . | . . . . . . . . . . . Reprogrammed . | . . . . . . . . . . . Reused . | . . . . . . . . . . . Traps Extracted . | . . . . . . . . . . . Installed . | . . . . . . . . . . . Triggered . | . . . . . . . . . . . Machines | -11 -10 -9 -8 -7 -7 -7 -7 -6 -6 -6 ---------- Run | Jun Mat Mat Mat Fac Was Fac DSF Fac Was Fac Machines Disabled . | . . . . . . . . . . . Max in Single Turn . | . . . . . . . . . . . Machines Repaired . | . . . . . . . . . . . Machines Sabotaged . | . . . . . . . . . . . Overloaded Fab Kills . | . . . . . . . . . . . Hacking | -11 -10 -9 -8 -7 -7 -7 -7 -6 -6 -6 --------- Run | Jun Mat Mat Mat Fac Was Fac DSF Fac Was Fac Machines Accessed 10 | . 1 2 . 2 . 1 . 2 . 2 Terminals 9 | . 1 2 . 2 . 1 . 2 . 1 Fabricators . | . . . . . . . . . . . Repair Stations . | . . . . . . . . . . . Recycling Units 1 | . . . . . . . . . . 1 Scanalyzers . | . . . . . . . . . . . Garrison Access . | . . . . . . . . . . . Total Hacks 30 | . 4 7 . 7 . 1 . 5 . 6 Successful 13 | . . 3 . 4 . 1 . 3 . 2 Failed 17 | . 4 4 . 3 . . . 2 . 4 Catastrophic 1 | . . . . . . . . . . 1 Database Lockouts . | . . . . . . . . . . . Manual . | . . . . . . . . . . . Terminals 29 | . 4 7 . 7 . 1 . 5 . 5 Fabricators . | . . . . . . . . . . . Repair Stations . | . . . . . . . . . . . Recycling Units 1 | . . . . . . . . . . 1 Scanalyzers . | . . . . . . . . . . . Garrison Access . | . . . . . . . . . . . Terminal Hacks 13 | . . 3 . 4 . 1 . 3 . 2 Record 1 | . . . . . . . . 1 . . Prototype ID Bank 4 | . . 1 . 2 . . . . . 1 Open DSF 1 | . . . . . . 1 . . . . Emergency Access Points 3 | . . 1 . . . . . 1 . 1 Terminal Index 1 | . . . . . . . . 1 . . Zone Layout 3 | . . 1 . 2 . . . . . . Fabricator Hacks . | . . . . . . . . . . . Repair Station Hacks . | . . . . . . . . . . . Recycling Unit Hacks . | . . . . . . . . . . . Scanalyzer . | . . . . . . . . . . . Garrison Access Hacks . | . . . . . . . . . . . Unauthorized Hacks . | . . . . . . . . . . . Terminals . | . . . . . . . . . . . Fabricators . | . . . . . . . . . . . Repair Stations . | . . . . . . . . . . . Recycling Units . | . . . . . . . . . . . Scanalyzers . | . . . . . . . . . . . Garrison Access . | . . . . . . . . . . . Data Cores Recovered . | . . . . . . . . . . . Used . | . . . . . . . . . . . Hacking Detections 6 | . 1 . . 2 . . . 1 . 2 Full Trace Events 1 | . 1 . . . . . . . . . Feedback Events . | . . . . . . . . . . . Feedback Blocked . | . . . . . . . . . . . Robot Schematics Acquired . | . . . . . . . . . . . Robots Built . | . . . . . . . . . . . Authchips . | . . . . . . . . . . . Time . | . . . . . . . . . . . Total Robot Build Rating . | . . . . . . . . . . . Part Schematics Acquired . | . . . . . . . . . . . Parts Built . | . . . . . . . . . . . Authchips . | . . . . . . . . . . . Time . | . . . . . . . . . . . Total Part Build Rating . | . . . . . . . . . . . Parts Repaired . | . . . . . . . . . . . Time . | . . . . . . . . . . . Parts Recycled . | . . . . . . . . . . . Recycled Matter . | . . . . . . . . . . . Retrieved Matter . | . . . . . . . . . . . Retrieved Components . | . . . . . . . . . . . Parts Scanalyzed . | . . . . . . . . . . . Part Schematics Acquired . | . . . . . . . . . . . Parts Damaged . | . . . . . . . . . . . Bothacking | -11 -10 -9 -8 -7 -7 -7 -7 -6 -6 -6 ------------ Run | Jun Mat Mat Mat Fac Was Fac DSF Fac Was Fac Used RIF Installer . | . . . . . . . . . . . Robots Hacked 2 | . . . 1 1 . . . . . . Non-combat 2 | . . . 1 1 . . . . . . Combat . | . . . . . . . . . . . Robot Hacks Applied 2 | . . . 1 1 . . . . . . no_distress 1 | . . . 1 . . . . . . . find_chute 1 | . . . . 1 . . . . . . Relay Couplers Released . | . . . . . . . . . . . Fabnet Peak Effective % . | . . . . . . . . . . . Robots Rewired . | . . . . . . . . . . . Allies Hacked . | . . . . . . . . . . . Hacks Repelled . | . . . . . . . . . . . Allies | -11 -10 -9 -8 -7 -7 -7 -7 -6 -6 -6 -------- Run | Jun Mat Mat Mat Fac Was Fac DSF Fac Was Fac Total Allies . | . . . . . . . . . . . Largest Group . | . . . . . . . . . . . Highest-Rated Group . | . . . . . . . . . . . Highest-Rated Ally . | . . . . . . . . . . . Total Orders . | . . . . . . . . . . . Ally Attacks . | . . . . . . . . . . . Total Damage . | . . . . . . . . . . . Kills . | . . . . . . . . . . . Allies Corrupted . | . . . . . . . . . . . Allies Melted . | . . . . . . . . . . . Intel | -11 -10 -9 -8 -7 -7 -7 -7 -6 -6 -6 ------- Run | Jun Mat Mat Mat Fac Was Fac DSF Fac Was Fac Robot Analysis Total . | . . . . . . . . . . . Derelict Logs Recovered . | . . . . . . . . . . . Drone Launches . | . . . . . . . . . . . Drone Recoveries . | . . . . . . . . . . . Exploration | -11 -10 -9 -8 -7 -7 -7 -7 -6 -6 -6 ------------- Run | Jun Mat Mat Mat Fac Was Fac DSF Fac Was Fac Turns Passed 888 | 9 32 64 75 336 32 39 54 23 33 191 Spaces Moved 1549 | 18 62 167 142 525 63 78 69 47 73 305 Core 1337 | 18 51 23 142 525 63 78 69 26 37 305 Treads . | . . . . . . . . . . . Legs . | . . . . . . . . . . . Wheels . | . . . . . . . . . . . Hover . | . . . . . . . . . . . Flight 212 | . 11 144 . . . . . 21 36 . Fastest Speed 32 | 50 32 32 50 50 50 50 50 40 40 50 Average Speed 47 | 50 46 35 50 50 50 50 50 45 45 50 Slowest Speed 50 | 50 50 50 50 50 50 50 50 50 50 50 Overloaded Moves . | . . . . . . . . . . . Propulsion Burnouts . | . . . . . . . . . . . Robots Hopped 9 | . 2 7 . . . . . . . . Cave-ins Triggered . | . . . . . . . . . . . Exploration Rate (%) 30 | 4 18 28 22 14 68 3 89 3 76 13 Regions Visited 10 Branch Regions . Pre-discovered Areas . | . . . . . . . . . . . Known Exits Taken 1 | . . . . . . 1 . . . . Unknown Exits Taken 4 | 1 1 1 1 . . . . . . . Scrap Searched . | . . . . . . . . . . . Spaces Dug . | . . . . . . . . . . . Terrain Destroyed . | . . . . . . . . . . . Melee . | . . . . . . . . . . . Projectile . | . . . . . . . . . . . AOE . | . . . . . . . . . . . Terrain Rammed . | . . . . . . . . . . . Walls Destroyed . | . . . . . . . . . . . Machines Disabled . | . . . . . . . . . . . Actions | -11 -10 -9 -8 -7 -7 -7 -7 -6 -6 -6 --------- Run | Jun Mat Mat Mat Fac Was Fac DSF Fac Was Fac Total 1669 | 17 61 162 144 597 62 77 86 48 72 343 Wait 31 | . . . . 4 . . . . . 27 Move 1523 | 17 57 152 141 525 62 77 68 47 72 305 Hop 9 | . 2 7 . . . . . . . . Pick Up . | . . . . . . . . . . . Fast Attach 11 | . 2 3 1 1 . . 3 1 . . Attach . | . . . . . . . . . . . Detach . | . . . . . . . . . . . Swap . | . . . . . . . . . . . Drop . | . . . . . . . . . . . Fire 1 | . . . . 1 . . . . . . Melee 1 | . . . 1 . . . . . . . Ram 18 | . . . 1 6 . . . . . 11 Kick . | . . . . . . . . . . . Crush . | . . . . . . . . . . . Escape Stasis 75 | . . . . 60 . . 15 . . . Rewire . | . . . . . . . . . . . Trap . | . . . . . . . . . . . Miscellaneous . | . . . . . . . . . . . Route ------- -11/Junkyard -10/Materials -9/Materials -8/Materials -7/Factory -7/Waste -7/Factory (discovered 2 exits: *Fac / DSF) -7/DSF -6/Factory -6/Waste -6/Factory (discovered 1 exit: [*Fac]) History --------- Turn | Location | Event 2 | -11/Junkyard | Discovered new exit (range 16) 10 | -11/Junkyard | Entered Materials 32 | -10/Materials | Discovered new exit (range 16) 42 | -10/Materials | Entered another Materials area 42 | -9/Materials | Evolved 2 slots: Utility x1, Weapon x1 99 | -9/Materials | Discovered new exit (range 16) 106 | -9/Materials | Entered another Materials area 106 | -8/Materials | Evolved 2 slots: Utility x1, Weapon x1 126 | -8/Materials | Lost 3 parts (2n1u) 178 | -8/Materials | Discovered new exit (range 9) 181 | -8/Materials | Entered Factory 181 | -7/Factory | Evolved 2 slots: Propulsion x1, Weapon x1 194 | -7/Factory | Assembled infested ambush trap array 395 | -7/Factory | Build established: Mutant 517 | -7/Factory | Sucked down chute 517 | -7/Factory | Entered Waste 527 | -7/Waste | Spotted C-40 Crusher 527 | -7/Waste | Spotted C-40 Crusher 532 | -7/Waste | EMP discharged 532 | -7/Waste | System corruption reached 10% 533 | -7/Waste | Spotted C-40 Crusher 533 | -7/Waste | Spotted C-40 Crusher 534 | -7/Waste | Spotted C-40 Crusher 540 | -7/Waste | Crushed by Compactor (1 part destroyed) 541 | -7/Waste | Core integrity fell below 50% 542 | -7/Waste | Discovered new exit (range 12) 549 | -7/Waste | Entered Factory 585 | -7/Factory | Discovered new exit (range 15) 588 | -7/Factory | Identified exit to DSF 588 | -7/Factory | Entered DSF 621 | -7/DSF | Discovered new exit (range 13) 626 | -7/DSF | Additional patrols routed to DSF 642 | -7/DSF | Entered Factory 642 | -6/Factory | Evolved 2 slots: Utility x1, Weapon x1 665 | -6/Factory | Sucked down chute 665 | -6/Factory | Entered Waste 669 | -6/Waste | Spotted C-40 Crusher 672 | -6/Waste | Spotted C-40 Crusher 674 | -6/Waste | Spotted C-40 Crusher 676 | -6/Waste | Spotted C-40 Crusher 680 | -6/Waste | Crushed by Compactor (1 part destroyed, 2 dropped) 681 | -6/Waste | Spotted C-40 Crusher 693 | -6/Waste | Spotted C-40 Crusher 693 | -6/Waste | Discovered new exit (range 10) 698 | -6/Waste | Entered Factory 752 | -6/Factory | Spotted B-75 Beast 849 | -6/Factory | Core integrity fell below 50% 878 | -6/Factory | Core integrity fell below 20% 889 | -6/Factory | Discovered new exit (range 6) 889 | -6/Factory | Destroyed by Y-54 Guardian with Flak Gun Last Messages --------------- 00846_ X-72 Disruptor knocked back. 00848_ Slammed into R-10 Processor. 00848_ R-10 Processor sends out distress signal. 00851_ MJ=OXRRGR9:EV 00880_ K-01 Serf collects debris. 00885_ System corrupted: Energy discharge (-33). 00887_ Slammed into R-10 Processor. 00887_ Penetrated by Slug. 00889_ Connecting with Terminal... >>Access(Emergency) Found 1 emergency access door: (98,114) Map updated. >>Prototypes Downloading prototype IDs... Hvy. Gatling Laser Cold Fusion Reactor 00889_ EXIT=FOUND Map ----- +----------------------------------------------------+ | ?????????????????????????????????????????????????? | | ?????????????????????????????????????????????????? | | ?????????????????????????????????????????????????? | | ?????????????????????????????????????????????????? | | ?????????????????????????????????????????????????? | | ?????????????????????????????????????????????????? | | ?????????????????????????????????????????????????? | | ?????????????????????????????????????????????????? | | ?????????????????????????????????????????????????? | | ?????????????????????????????????????????????????? | | ???????????????????????? ??????????????????????? | | ???????????????????????? ??????????????????????? | | ???????????????????????? ??????????????????????? | | ???????????????????????# #?????????????????????? | | ???????????????????????# #?????????????????????? | | ???????????????????????#t #?????????????????????? | | ???????????????????????? w##????????????????????? | | ???????????????????????? ?????????????????????? | | ???????????????????????? ?????????????????????? | | ???????????????????????? Y ?????????????????????? | | ???????????????????????? ??????????????????????? | | ???????????????????????? ! ??????????????????????? | | ????????????????????????# #??????????????????????? | | ????????????????????????# #??????????????????????? | | ??????????????????????### ###????????????????????? | | ??????????????????????# t@ ######???????????????? | | +###################### #???????????????? | | T #????????????? | | ############ R #????????????? | | ^ #??????????# ## #????????????? | | +########+##??????????###+###?? #????????????? | | ????? ????????????????????? #????????????? | | #???? ?????????????????????? #????????????? | | #??? ?????????????????????? #????????????? | | #??? ??????????????????????? #????????????? | | #?? ???????????????????????#????????????? | | #?? ????????????????????????????????????? | | #? ???????????????????????????????????? | | #? ???????????????????????????????????? | | ############??????????????????????????????????? | | #?????????????????????????????????????????????? | | #?????????????????????????????????????????????? | | #?????????????????????????????????????????????? | | ####?????????????????????????????????????????????? | | #####??????????????????????????????????+?????????? | | #??????????????????????????????????????? | | ### #??????????????????????????????????????? | | ?????????????????????????????????????????????????? | | ??#+##???????????????????????????????????????????? | | ? #???????????????????????????????????????????? | +----------------------------------------------------+ Best States ------------- Heat Dissipation 37 Energy Generation 5 Energy Capacity 100 Matter Stores 269 Matter Capacity 300 Sight Range 20 Terrain Scan Density 10 Evasion (%) 63 Defensive Hacking 20 Item Schematics ----------------- None Robot Schematics ------------------ None Fabricated ------------ Nothing Alien Tech Used ----------------- None Achievements -------------- None Challenges ------------ Fragile Parts No Salvage Pure Core Scavenger Simple Hacker Trapped Unstable Evolution Game ------ Seed ForceFlightInitializer Manual? 0 Play Time 00:13:44 Cumulative 98.9 hours Start 2023.04.13 @ 11:04:27 End 2023.04.13 @ 11:16:02 Sessions 1 Manual Loads 0 Difficulty Rogue Special Mode None Game No. 237 Rogue 237 Adventurer 0 Explorer 0 Win Type - Total 3 Types 3/0/0/0/0/0/0/0/0 Lore% 55 Gallery% 57 Achievement% 48 Wizard Run 0 Options --------- ASCII 0 Keyboard 0 Movement Numpad Keybinds 0 Fullscreen 1 Font 12/Smallcaps Map View 83x54 Tactical HUD 1 Map Filters NONE Filters NONE Steam 1 RUN: 67f3ea11-236b-4412-bc90-dfaf9aed6938